bitfinex/quotes_ETHUSD_20250123
["timestamp","ask_amount","ask_price","bid_price","bid_amount"]
[1737664619237,1.3702,3271.5,3270.2,6.5]
[1737664619407,3.05754,3270.7,3270.2,6.5]
[1737664619591,3.0,3271.1,3270.2,6.5]
[1737664619797,3.05747,3270.7,3269.8,1.4111]
[1737664620025,3.0,3270.9,3269.8,1.4111]
[1737664620334,1.3134,3270.5,3268.9,1.308]
[1737664620633,3.05787,3270.3,3269.3,3.05866]
[1737664620845,3.05797,3270.2,3269.1,3.05892]
[1737664621253,3.05797,3270.2,3268.9,1.308]
[1737664621254,3.05747,3270.7,3268.9,1.308]
[1737664621452,3.05751,3270.7,3269.0,3.05903]
[1737664621662,3.0,3270.6,3268.9,1.308]
[1737664621809,3.05783,3270.3,3269.4,3.0586]
[1737664622010,3.96717754,3270.7,3268.9,1.308]
[1737664622211,3.05884,3269.3,3268.9,1.308]
[1737664622525,3.05913,3268.9,3268.8,0.1652635]
[1737664622758,6.05913,3268.9,3268.8,0.1652635]
[1737664622925,3.0,3268.9,3268.8,0.1652635]
[1737664623265,6.05913,3268.9,3268.8,0.1652635]
[1737664623484,3.0,3268.9,3268.8,0.1652635]
[1737664623754,3.05838,3269.7,3268.9,0.55]
[1737664624056,3.0,3269.4,3268.8,0.1652635]
[1737664624241,6.05913,3268.9,3268.8,0.1652635]
[1737664624559,3.0,3268.9,3268.8,0.1652635]
[1737664624757,3.05785,3270.3,3269.2,3.05884]
[1737664624963,3.05758,3270.6,3268.9,1.3171]
[1737664625114,4.38603,3270.9,3270.1,3.05799]
[1737664625115,1.3287,3270.9,3270.1,3.05799]
[1737664625454,4.38558,3271.4,3269.2,1.3171]
[1737664625755,3.05783,3270.3,3269.4,3.05866]
[1737664626072,1.3287,3271.4,3269.2,1.3171]
[1737664626073,3.0571,3271.1,3270.0,3.05805]
[1737664626214,3.05725,3271.0,3269.9,3.05818]
[1737664626410,1.3287,3271.4,3270.4,3.05763]
[1737664626728,3.05678,3271.5,3270.5,0.55]
[1737664626925,3.05729,3270.9,3269.5,1.3157]
[1737664627119,1.3798,3271.0,3269.5,1.3157]
[1737664627327,3.0,3270.8,3269.6,0.55]
[1737664627561,3.0,3270.9,3270.0,0.55]
[1737664627726,3.0,3270.9,3270.0,3.6081]
[1737664627727,3.05727,3270.9,3270.0,3.6081]
[1737664628068,3.0,3270.9,3269.8,0.55]
[1737664628351,3.05773,3270.4,3269.5,1.3157]
[1737664628523,1.3798,3271.0,3268.7,3.0]
[1737664628728,3.05745,3270.7,3269.1,3.05894]
[1737664628929,1.3798,3271.0,3269.3,1.3067]
[1737664629556,1.3798,3271.0,3269.5,0.55]
[1737664629557,3.0,3270.3,3269.5,0.55]
[1737664629856,1.3798,3271.0,3269.3,1.3067]
[1737664630363,7.35683,3268.9,3268.8,0.1652635]
[1737664630654,4.2977,3268.9,3268.8,0.1652635]
[1737664631059,3.0,3268.9,3268.8,0.1652635]
[1737664631258,6.05913,3268.9,3268.8,0.1652635]
[1737664631457,1.2977,3269.6,3268.8,0.1652635]
[1737664631757,6.05913,3269.0,3268.9,0.04391336]
[1737664631958,3.0,3269.0,3268.9,0.04391336]
[1737664632263,3.0,3269.3,3268.8,0.1652635]
[1737664632418,3.05846,3269.7,3268.8,0.1652635]
[1737664632419,3.05846,3269.7,3268.9,0.55]
[1737664632618,3.0,3269.6,3268.9,0.55]
[1737664632928,3.05777,3270.4,3268.9,0.55]
[1737664632929,3.0578,3270.4,3269.3,1.8493]
[1737664633262,1.3997,3271.4,3269.5,3.05855]
[1737664633419,3.05782,3270.3,3269.6,0.55]
[1737664633614,3.05782,3270.3,3269.6,0.59352746]
[1737664633615,3.05786,3270.3,3269.6,0.59352746]
[1737664633820,3.05718,3271.0,3269.9,0.55]
[1737664634053,3.05747,3270.7,3269.9,0.55]
[1737664634238,3.05755,3270.6,3270.0,0.04405486]
[1737664634432,3.05688,3271.3,3270.1,5.00348]
[1737664634433,3.05694,3271.3,3270.1,5.00348]
[1737664634690,0.50093542,3271.3,3270.1,1.3955]
[1737664634897,3.05782,3270.3,3270.1,1.3955]
[1737664635050,3.05802,3270.1,3269.4,1.2834]
[1737664635249,3.0583,3269.8,3269.5,0.04447903]
[1737664635453,6.05783,3270.3,3269.4,1.2834]
[1737664635691,6.05783,3270.3,3269.5,0.59409993]
[1737664635986,3.05793,3270.2,3269.5,0.59409993]
[1737664636166,3.05744,3270.8,3269.5,0.04409993]
[1737664636373,3.05843,3269.7,3269.5,0.04409993]
[1737664636548,3.05847,3269.6,3269.5,0.04409993]
[1737664636748,3.05847,3269.6,3268.8,0.1652635]
[1737664636749,3.05847,3269.6,3268.9,1.3854]
[1737664636948,3.0,3269.7,3268.9,1.3854]
[1737664637149,3.05809,3270.1,3269.0,0.55]
[1737664637150,6.05823,3269.9,3269.0,0.55]
[1737664637352,3.0,3269.9,3269.0,0.5943095]
[1737664637558,3.05781,3270.4,3269.2,3.05884]
[1737664637758,3.05781,3270.4,3269.3,3.0587]
[1737664637958,3.05781,3270.4,3269.3,0.59473804]
[1737664638284,3.05782,3270.3,3269.3,0.59473804]
[1737664638439,3.0,3270.3,3269.3,0.59473804]
[1737664638997,3.0,3270.2,3269.3,0.59473804]
[1737664639157,6.05793,3270.2,3269.3,0.59473804]
[1737664639485,3.0585,3269.6,3269.3,0.04473804]
[1737664639655,3.0,3269.4,3268.8,0.1652635]
[1737664639990,3.0,3269.6,3268.9,0.04495857]
[1737664640144,3.05877,3269.3,3268.9,0.04495857]
[1737664640345,3.0,3269.2,3268.9,0.55]
[1737664640544,3.05821,3269.9,3268.9,0.55]
[1737664640739,3.05799,3270.2,3269.0,0.04490343]
[1737664640979,3.05812,3270.0,3269.1,0.55]
[1737664641484,3.05799,3270.2,3269.3,0.55]
[1737664641642,3.05848,3269.6,3269.4,0.04468291]
[1737664641837,3.0,3269.5,3268.8,0.1652635]
[1737664642243,3.0,3269.6,3269.0,0.55]
[1737664642485,3.0,3269.6,3269.1,0.04478764]
[1737664642779,3.05839,3269.7,3268.9,0.55]
[1737664642780,6.05839,3269.7,3268.9,0.55]
[1737664642977,6.05839,3269.7,3269.2,0.04473251]
[1737664643182,3.0,3269.7,3268.9,0.55]
[1737664643383,3.0,3270.1,3269.3,0.04467739]
[1737664643680,4.15938107,3271.5,3268.8,3.2244835]
[1737664643681,3.05697,3271.3,3269.8,0.55]
[1737664643880,3.0,3270.9,3269.9,0.04414944]
[1737664644085,6.05699,3271.2,3270.0,0.55]
[1737664644309,1.373,3271.7,3269.5,1.4153]
[1737664644310,3.05755,3270.6,3269.5,1.4153]
[1737664644445,3.05755,3270.6,3269.5,4.47386]
[1737664644652,0.50093542,3271.6,3269.5,4.47386]
[1737664644653,0.50093542,3271.6,3269.6,0.59457267]
[1737664644970,3.0,3270.7,3269.8,0.55]
[1737664645180,1.3199,3270.7,3269.6,0.04457267]
[1737664645381,6.0581,3270.0,3269.9,0.04195437]
[1737664646000,6.0581,3270.0,3269.7,0.04206459]
[1737664646166,3.0,3270.0,3269.6,0.55]
[1737664646599,1.3848,3271.2,3270.1,0.55]
[1737664646827,3.0571,3271.1,3269.7,0.04234217]
[1737664646971,3.05717,3271.0,3269.8,3.05828]
[1737664647166,3.05717,3271.0,3269.9,0.55]
[1737664647522,3.0,3271.2,3270.0,0.04216512]
[1737664647687,3.05723,3271.0,3270.0,0.04216512]
[1737664647887,3.05723,3271.0,3270.1,0.55]
[1737664648069,0.50093542,3271.1,3270.2,0.04015966]
[1737664648274,3.05795,3270.2,3269.5,1.4153]
[1737664648495,3.05795,3270.2,3269.6,0.04070802]
[1737664648668,3.05753,3270.7,3269.6,0.04070802]
[1737664648865,3.0573,3270.9,3270.2,0.2724375]
[1737664649093,3.0,3271.0,3270.3,0.04025217]
[1737664649311,3.05731,3270.9,3270.3,0.04025217]
[1737664649508,0.47857729,3271.8,3270.4,0.55]
[1737664649920,0.47857729,3271.8,3270.6,0.55]
[1737664650122,1.4154,3272.3,3270.6,0.55]
[1737664650273,4.47095,3272.8,3271.2,0.55]
[1737664650602,3.05567,3272.6,3271.3,0.03963489]
[1737664650803,1.4154,3272.8,3271.4,0.55]
[1737664651011,0.28680122,3273.1,3270.8,1.364]
[1737664651012,0.28680122,3273.1,3272.2,0.55]
[1737664651170,0.28680122,3273.1,3272.6,0.55]
[1737664651368,1.4154,3273.9,3272.3,4.458244]
[1737664651597,1.4154,3273.9,3272.7,0.03803981]
[1737664651874,3.0556,3272.7,3271.7,1.364]
[1737664652109,3.05569,3272.6,3271.8,0.55]
[1737664652285,3.05597,3272.3,3271.8,0.5889889]
[1737664652497,3.05575,3272.6,3271.8,0.5889889]
[1737664652679,3.0,3272.7,3271.8,0.5889889]
[1737664653011,3.0,3272.7,3272.0,0.55]
[1737664653207,1.4154,3273.9,3272.7,1.364]
[1737664653439,3.05503,3273.3,3272.7,1.364]
[1737664653717,1.4154,3273.9,3272.9,0.55]
[1737664653718,6.05487,3273.5,3272.9,0.55]
[1737664653888,3.0,3273.3,3272.9,0.55]
[1737664654213,3.05485,3273.5,3273.0,0.03832864]
[1737664654574,3.05493,3273.4,3273.0,0.03832864]
[1737664654774,3.05498,3273.4,3273.0,0.03832864]
[1737664654984,3.0,3273.3,3273.0,0.03832864]
[1737664655207,0.99448043,3273.7,3271.8,3.05633]
[1737664655528,0.93957608,3273.2,3272.2,1.3739]
[1737664655732,3.05551,3272.8,3272.2,1.3739]
[1737664656008,3.0,3273.0,3272.3,0.58871373]
[1737664656371,4.48785109,3273.7,3272.3,0.58871373]
[1737664656571,3.05511,3273.2,3272.5,0.55]
[1737664656813,3.0552,3273.1,3272.2,1.3739]
[1737664657121,3.0,3272.8,3272.2,1.3739]
[1737664657640,3.0,3272.9,3272.3,0.55]
[1737664657791,6.05541,3272.9,3272.3,0.55]
[1737664657993,0.99448043,3273.7,3272.7,0.55]
[1737664658189,4.39763,3274.6,3272.8,1.3078]
[1737664658441,3.0541,3274.3,3273.3,3.05499]
[1737664658740,1.3438,3275.1,3273.8,0.55]
[1737664658943,3.05357,3274.9,3274.0,0.55]
[1737664659091,4.39663,3275.7,3274.3,3.05402]
[1737664659290,1.76604066,3276.2,3275.0,1.4147]
[1737664659529,3.0526,3275.9,3275.1,0.55]
[1737664659748,0.17660407,3276.1,3275.1,0.55]
[1737664660032,0.17660407,3276.1,3275.0,1.4147]
[1737664660033,0.50093542,3276.0,3275.0,1.4147]
[1737664660550,3.05316,3275.3,3275.0,1.4147]
[1737664660709,3.05334,3275.1,3275.0,1.4147]
[1737664660893,0.50093542,3276.0,3275.0,1.4147]
[1737664661294,3.05241,3276.1,3275.1,0.55]
[1737664661490,3.05241,3276.1,3275.3,0.55]
[1737664661790,0.50093542,3277.0,3275.5,0.55]
[1737664661995,3.0,3277.0,3275.5,0.55]
[1737664662192,3.05269,3275.8,3275.6,0.03468673]
[1737664662491,3.0,3275.7,3275.0,1.4147]
[1737664662728,3.0,3275.3,3275.1,0.55]
[1737664662932,0.3,3275.7,3275.0,1.4147]
[1737664663147,3.0,3275.2,3275.0,1.4147]
[1737664663357,3.0,3275.2,3273.6,6.5]
[1737664663557,3.05362,3274.8,3274.7,1.3727]
[1737664663834,3.05353,3274.9,3274.7,1.3727]
[1737664664038,3.05353,3274.9,3273.5,3.05475]
[1737664664039,3.05385,3274.6,3273.6,1.3028]
[1737664664240,3.05429,3274.1,3273.6,1.3028]
[1737664664442,3.05447,3273.9,3273.7,0.03595164]
[1737664664641,3.05455,3273.8,3273.7,0.03595164]
[1737664664866,6.05439,3274.0,3273.6,1.3028]
[1737664665078,3.05406,3274.4,3273.7,0.55]
[1737664665237,3.05334,3275.1,3274.2,3.05409]
[1737664665420,0.3,3275.7,3274.3,1.9419]
[1737664665625,3.05342,3275.1,3274.3,1.42739458]
[1737664665826,3.05354,3274.9,3274.3,1.42739458]
[1737664666021,3.05351,3275.0,3274.3,1.42739458]
[1737664666226,0.3,3275.7,3274.3,1.42739458]
[1737664666227,3.0,3275.2,3274.4,0.55]
[1737664666479,0.3,3275.7,3274.4,0.74773946]
[1737664666682,1.289,3276.5,3274.7,3.60368]
[1737664666827,3.0525,3276.0,3275.0,3.05341]
[1737664667030,3.0525,3276.0,3275.1,0.55]
[1737664667338,3.05305,3275.5,3275.1,0.58388961]
[1737664667540,0.305305,3275.5,3275.1,0.58388961]
[1737664667723,6.05324,3275.2,3275.1,0.58388961]
[1737664668365,6.05324,3275.2,3274.9,0.55]
[1737664668565,3.05315,3275.4,3274.9,0.55]
[1737664668963,3.05245,3276.1,3274.8,1.4176]
[1737664668964,3.05335,3275.1,3275.0,0.03380702]
[1737664669338,3.05297,3275.5,3274.9,0.55]
[1737664669546,3.05297,3275.5,3275.0,0.19676]
[1737664669755,3.05297,3275.5,3275.0,0.23052933]
[1737664669926,3.05306,3275.4,3275.0,0.23052933]
[1737664670131,3.05306,3275.4,3275.0,0.03376933]
[1737664670829,3.0,3275.6,3275.0,0.03376933]
[1737664671128,3.05251,3276.0,3275.3,0.55]
[1737664671329,3.05251,3276.0,3275.0,0.03376933]
[1737664671330,0.43864066,3277.3,3275.6,0.55]
[1737664671647,3.05225,3276.3,3275.6,0.55]
[1737664672034,3.05225,3276.3,3275.8,0.55]
[1737664672249,1.3279,3277.5,3275.8,0.55]
[1737664672250,1.3279,3277.5,3276.0,0.55]
[1737664672450,3.0,3277.0,3276.2,3.05228]
[1737664672662,3.0,3277.0,3276.2,0.55]
[1737664672861,3.05203,3276.5,3276.4,0.55]
[1737664673242,3.05237,3276.2,3275.9,1.4041]
[1737664673442,3.05229,3276.3,3275.9,1.4041]
[1737664673646,3.05231,3276.2,3276.1,0.55]
[1737664674044,3.0525,3276.0,3275.9,1.4041]
[1737664674239,3.0525,3276.0,3275.9,1.9541]
[1737664674640,3.0525,3276.0,3275.9,1.98714083]
[1737664674891,7.47640912,3277.6,3276.0,0.55]
[1737664674892,3.05213,3276.4,3276.0,0.55]
[1737664675053,3.05225,3276.3,3276.0,0.55]
[1737664675376,3.0,3277.3,3276.0,0.55]
[1737664675579,3.05217,3276.4,3276.0,0.55]
[1737664675940,3.0,3276.8,3276.0,0.55]
[1737664675941,3.05228,3276.3,3276.0,0.55]
[1737664676151,6.05207,3276.5,3276.1,0.03293103]
[1737664676344,3.0,3276.6,3276.1,0.03293103]
[1737664676546,3.05194,3276.6,3276.1,0.03293103]
[1737664676748,3.05041,3278.3,3276.1,0.23163413]
[1737664677046,3.0511,3277.5,3276.7,4.38951]
[1737664677250,3.05092,3277.7,3276.7,4.38951]
[1737664677459,3.05124,3277.4,3276.8,0.58201749]
[1737664677878,3.0515,3277.1,3276.8,0.58201749]
[1737664678102,4.3191,3278.0,3276.8,0.77398924]
[1737664678283,3.05098,3277.7,3276.8,0.58201749]
[1737664678459,0.387974,3278.2,3277.1,0.55]
[1737664678784,3.98227703,3279.1,3277.8,0.55]
[1737664678785,3.05008,3278.6,3277.8,0.55]
[1737664679145,3.05015,3278.6,3278.0,0.55]
[1737664679346,1.4194,3279.1,3278.0,0.55]
[1737664679347,3.05008,3278.7,3278.0,0.55]
[1737664679643,3.05045,3278.2,3278.1,0.03140757]
[1737664680060,3.05073,3277.9,3277.3,1.379]
[1737664680286,6.05045,3278.2,3278.1,0.02877686]
[1737664680595,3.05074,3277.9,3277.4,0.55]
[1737664680794,0.305008,3278.7,3277.4,0.55]
[1737664680991,3.05066,3278.0,3277.5,0.02919819]
[1737664681349,3.04982,3278.9,3277.9,0.55]
[1737664681544,4.47246,3279.5,3278.1,0.55]
[1737664681783,3.05045,3278.2,3278.1,0.55]
[1737664682178,3.05045,3278.2,3277.5,1.3713]
[1737664682179,3.05101,3277.6,3277.5,1.3713]
[1737664682387,3.05083,3277.8,3277.5,1.3713]
[1737664682608,3.0,3278.2,3277.5,1.3713]
[1737664682609,3.0,3278.2,3277.6,0.55]
[1737664682883,3.04952,3279.2,3277.6,3.79313]
[1737664683088,3.05065,3278.0,3277.7,0.55]
[1737664683584,3.05036,3278.3,3276.7,1.4184]
[1737664683788,3.05065,3278.0,3277.1,3.0514]
[1737664683972,3.0505,3278.2,3276.8,0.55]
[1737664684286,3.04998,3278.7,3277.6,0.55]
[1737664684483,3.0,3278.2,3277.5,0.55]
[1737664684788,3.05046,3278.2,3277.5,0.55]
[1737664684986,3.05072,3278.0,3277.5,0.55]
[1737664685152,3.05026,3278.4,3277.3,0.55]
[1737664685481,3.05077,3277.9,3277.3,0.55]
[1737664685683,3.0,3278.4,3277.3,0.501977]
[1737664685992,3.05114,3277.5,3277.2,0.55]
[1737664686182,3.493708,3278.6,3277.1,1.4184]
[1737664686183,3.05136,3277.3,3277.1,1.4184]
[1737664686370,3.05138,3277.2,3277.1,1.4184]
[1737664686572,3.05045,3278.2,3277.1,1.4184]
[1737664686573,3.0,3278.5,3277.2,0.55]
[1737664686773,3.05046,3278.2,3277.1,1.4184]
[1737664687089,3.0502,3278.5,3277.8,5.02266]
[1737664687311,3.05046,3278.2,3277.8,1.9719]
[1737664687595,0.305046,3278.2,3276.6,1.3954]
[1737664687758,3.05115,3277.5,3276.6,1.82480696]
[1737664687964,3.05129,3277.3,3276.6,4.87665696]
[1737664688199,3.05129,3277.3,3276.6,4.87672696]
[1737664688366,3.05107,3277.6,3276.9,3.05164]
[1737664688561,3.05107,3277.6,3277.0,0.305164]
[1737664688897,3.0,3278.1,3277.0,0.305164]
[1737664688898,3.0,3277.9,3277.3,0.55]
[1737664689109,3.05074,3277.9,3277.3,0.55]
[1737664689316,3.05053,3278.2,3277.0,3.356724]
[1737664689532,3.05082,3277.8,3277.3,0.55]
[1737664689885,3.05097,3277.7,3277.3,0.55]
[1737664690091,3.05104,3277.6,3277.3,0.55]
[1737664690429,3.05111,3277.5,3277.4,0.02932293]
[1737664690624,3.05097,3277.7,3277.4,0.02932293]
[1737664690772,3.05109,3277.6,3277.4,0.02932293]
[1737664691985,3.04998,3278.7,3277.4,0.02932293]
[1737664691986,3.05099,3277.7,3277.4,0.02932293]
[1737664692295,3.0511,3277.5,3277.4,0.02932293]
[1737664692604,3.05101,3277.6,3276.9,0.55]
[1737664692808,3.0,3277.8,3277.4,0.55]
[1737664692987,3.05047,3278.2,3277.5,0.55]
[1737664693321,1.3992,3278.8,3277.5,0.0302839]
[1737664693322,3.05081,3277.9,3277.5,0.0302839]
[1737664693506,3.05084,3277.8,3277.5,0.0302839]
[1737664693706,3.05064,3278.0,3277.2,0.55]
[1737664693910,3.0,3278.1,3277.5,0.55]
[1737664694222,3.05027,3278.4,3276.3,6.75]
[1737664694223,3.0503,3278.4,3277.8,0.55]
[1737664694404,3.05059,3278.1,3277.8,0.55]
[1737664694589,3.05067,3278.0,3277.9,0.03008059]
[1737664694790,3.05059,3278.1,3277.8,0.55]
[1737664695219,3.05073,3277.9,3277.8,0.55]
[1737664695602,3.05057,3278.1,3277.8,0.55]
[1737664695779,3.0,3278.1,3277.8,0.74546]
[1737664696004,3.05045,3278.2,3277.8,0.74546]
[1737664696005,3.05009,3278.6,3277.8,0.74546]
[1737664696226,3.05064,3278.0,3277.9,0.55]
[1737664696528,3.05082,3277.8,3277.1,1.4064]
[1737664696710,3.05102,3277.6,3277.1,1.4064]
[1737664697018,3.05114,3277.5,3277.1,1.4064]
[1737664697181,3.0,3277.9,3277.1,1.4064]
[1737664697378,3.05092,3277.7,3277.1,1.4064]
[1737664697684,1.2959,3278.3,3277.1,1.4064]
[1737664697998,3.05063,3278.1,3277.1,4.45781]
[1737664698322,3.05063,3278.1,3277.2,3.05136]
[1737664698323,3.05082,3277.8,3277.2,3.05136]
[1737664698545,3.05057,3278.1,3277.4,0.55]
[1737664698836,3.05057,3278.1,3277.1,1.4064]
[1737664698837,3.610093,3278.1,3277.1,1.4064]
[1737664699002,3.610093,3278.1,3276.6,1.3804]
[1737664699003,3.05179,3276.8,3276.6,1.3804]
[1737664699335,3.05149,3277.1,3276.6,1.3804]
[1737664699494,3.05064,3278.0,3276.9,3.05159]
[1737664699683,3.051,3277.7,3276.8,3.05171]
[1737664699878,3.05103,3277.6,3277.0,0.55]
[1737664700082,3.05074,3277.9,3277.0,0.55]
[1737664700384,3.0,3278.2,3277.0,0.55]
[1737664700385,3.05117,3277.5,3277.0,0.55]
[1737664700718,3.05117,3277.5,3276.6,1.3804]
[1737664700719,3.0,3277.7,3276.7,0.55]
[1737664700919,3.05121,3277.4,3276.7,0.55]
[1737664701120,3.05139,3277.2,3276.6,1.3804]
[1737664701321,3.05122,3277.4,3276.8,0.028861]
[1737664701622,3.0513,3277.3,3276.9,0.02880613]
[1737664701811,3.0513,3277.3,3276.7,0.55]
[1737664701812,3.05141,3277.2,3276.7,0.55]
[1737664701984,3.05104,3277.6,3277.0,0.02875126]
[1737664702178,3.05104,3277.6,3276.9,0.55]
[1737664702411,3.05104,3277.6,3277.1,0.02869639]
[1737664702650,0.2496,3278.0,3277.1,0.02869639]
[1737664702819,3.05138,3277.2,3277.1,0.02869639]
[1737664703023,4.742736,3277.0,3276.6,1.3804]
[1737664703235,3.05178,3276.8,3276.7,0.55]
[1737664703436,7.794346,3277.0,3276.7,0.55]
[1737664703755,7.794356,3277.0,3276.7,0.74304]
[1737664704109,4.742736,3277.0,3276.7,0.74304]
[1737664704543,7.794306,3277.0,3276.7,0.74304]
[1737664704850,4.742736,3277.0,3276.7,0.74304]
[1737664705353,4.742736,3277.0,3276.9,3.60166]
[1737664705525,4.742736,3277.0,3276.9,5.37643]
[1737664705526,3.85926237,3277.0,3276.9,5.37643]
[1737664705725,0.2496,3278.0,3277.6,3.05092]
[1737664706090,0.2496,3278.0,3277.8,0.55]
[1737664706970,0.2496,3278.0,3277.9,0.02952371]
[1737664707756,3.30024,3278.0,3277.9,0.02952371]
[1737664707926,3.05082,3277.8,3277.7,0.27104378]
[1737664708271,3.05082,3277.8,3277.7,0.300685]
[1737664708475,3.05082,3277.8,3277.7,0.850685]
[1737664708769,0.2496,3278.0,3277.4,0.55]
[1737664709155,3.05082,3277.8,3277.7,0.02950411]
[1737664709359,3.0511,3277.5,3277.4,0.55]
[1737664709538,3.0511,3277.5,3277.3,0.70471383]
[1737664709539,3.05119,3277.4,3277.3,0.70471383]
[1737664709958,6.05119,3277.4,3277.3,0.70471383]
[1737664710283,3.05173,3276.9,3276.3,1.3272]
[1737664710484,3.05157,3277.0,3276.3,1.47979031]
[1737664710835,3.05136,3277.3,3276.4,3.05212]
[1737664711037,3.04994,3278.8,3276.4,0.55]
[1737664711286,3.04994,3278.8,3276.7,0.55]
[1737664711287,3.0512,3277.4,3276.7,0.55]
[1737664711575,3.05114,3277.5,3276.9,0.55]
[1737664711733,3.0513,3277.3,3276.5,3.05203]
[1737664711934,3.0,3277.9,3276.6,0.305203]
[1737664712266,3.30024,3278.0,3276.7,0.55]
[1737664712267,3.2496,3278.0,3276.7,0.55]
[1737664712797,3.05127,3277.4,3276.7,0.55]
[1737664712934,3.05169,3276.9,3276.3,1.47979031]
[1737664713133,3.05158,3277.0,3276.3,1.3272]
[1737664713370,3.05158,3277.0,3276.3,4.3794]
[1737664713532,3.05169,3276.9,3276.4,0.55]
[1737664713936,3.05127,3277.4,3276.6,3.05191]
[1737664714144,0.2496,3278.0,3276.7,0.55]
[1737664714350,3.30024,3278.0,3277.3,1.8321]
[1737664714549,0.2496,3278.0,3277.5,0.55]
[1737664714784,0.2496,3278.0,3277.6,3.05093]
[1737664715096,0.2496,3278.0,3277.7,0.55]
[1737664715391,0.2496,3278.0,3277.6,0.55]
[1737664715891,0.2496,3278.0,3277.9,0.55]
[1737664716192,0.2496,3278.0,3277.3,1.2821]
[1737664716391,3.05109,3277.6,3277.3,1.2821]
[1737664716539,0.2496,3278.0,3277.3,1.2821]
[1737664716540,3.05085,3277.8,3277.3,1.2821]
[1737664716740,0.2496,3278.0,3277.4,0.55]
[1737664716978,0.2496,3278.0,3277.7,0.55]
[1737664717476,0.2496,3278.0,3277.5,3.6011]
[1737664717800,0.2496,3278.0,3277.3,1.2821]
[1737664717962,0.2496,3278.0,3277.4,0.55]
[1737664718142,0.2496,3278.0,3277.5,0.488337]
[1737664718347,0.2496,3278.0,3277.8,0.55]
[1737664718542,0.2496,3278.0,3277.9,0.55]
[1737664718864,0.2496,3278.0,3277.9,3.60073]
[1737664719076,0.2496,3278.0,3277.9,1.8623]
[1737664719286,0.2496,3278.0,3277.9,2.353611]
[1737664719604,0.2496,3278.0,3277.9,5.404341]
[1737664721643,3.04897,3279.8,3279.0,3.04963]
[1737664721873,3.04879,3280.0,3279.1,3.59961]
[1737664722276,3.04895,3279.9,3279.1,3.59961]
[1737664722453,3.04896,3279.8,3279.3,0.55]
[1737664722865,0.44310209,3280.0,3279.2,0.55]
[1737664723064,3.04896,3279.8,3278.9,1.3123]
[1737664723281,3.04964,3279.1,3278.4,1.3079]
[1737664723498,3.05007,3278.7,3278.4,1.3079]
[1737664723700,3.04981,3278.9,3278.4,1.3079]
[1737664724002,3.04898,3279.8,3278.5,0.55]
[1737664724138,3.04906,3279.7,3279.1,0.55]
[1737664724339,3.04939,3279.4,3278.6,0.18579]
[1737664724782,3.04959,3279.2,3278.6,0.18579]
[1737664725082,3.04939,3279.4,3278.7,0.55]
[1737664725083,3.04936,3279.4,3278.7,0.55]
[1737664725681,3.04936,3279.4,3278.5,0.55]
[1737664725841,3.04949,3279.3,3278.5,3.60015]
[1737664726857,3.04884,3280.0,3278.5,3.60015]
[1737664727104,3.04945,3279.3,3278.5,3.60015]
[1737664727382,3.04945,3279.3,3278.5,4.39599]
[1737664727580,3.04969,3279.1,3278.5,1.34584]
[1737664729899,3.04942,3279.4,3278.6,3.05004]
[1737664730182,3.04942,3279.4,3278.7,0.55]
[1737664730347,3.04916,3279.6,3278.8,0.55]
[1737664730547,3.0,3279.7,3278.8,0.55]
[1737664730782,3.04927,3279.5,3278.8,0.55]
[1737664730984,3.0,3279.9,3278.5,0.79584]
[1737664731160,3.04956,3279.2,3278.4,4.35815]
[1737664731363,3.04974,3279.0,3278.4,1.3079]
[1737664731561,3.04974,3279.0,3278.2,9.55044]
[1737664731562,3.05036,3278.3,3278.2,6.5]
[1737664731756,3.05036,3278.3,3277.5,3.539427]
[1737664731757,3.0505,3278.2,3277.5,1.794937]
[1737664731965,3.0502,3278.5,3277.5,1.794937]
[1737664732145,3.04987,3278.9,3278.1,6.48190376]
[1737664732468,3.353666,3280.0,3278.2,4.43074]
[1737664732469,3.04971,3279.0,3278.2,4.43074]
[1737664732677,3.04983,3278.9,3278.2,1.3803]
[1737664733290,3.04992,3278.8,3278.2,1.3803]
[1737664733872,3.04933,3279.4,3278.2,1.3803]
[1737664734079,3.05001,3278.7,3278.2,1.3803]
[1737664734258,3.354363,3279.3,3278.2,1.3803]
[1737664734463,3.05054,3278.2,3277.8,1.295]
[1737664734774,3.05081,3277.9,3277.3,1.295]
[1737664735365,3.05081,3277.9,3277.3,1.72964]
[1737664735563,3.05059,3278.1,3277.3,1.72964]
[1737664735765,3.05021,3278.5,3277.3,1.72964]
[1737664735978,6.04971,3279.0,3277.4,0.55]
[1737664736294,3.05015,3278.6,3277.8,3.05076]
[1737664737063,3.04991,3278.8,3277.8,3.05076]
[1737664737263,3.05067,3278.0,3277.5,6.5]
[1737664737458,3.05029,3278.4,3277.8,0.03631296]
[1737664737660,3.355319,3278.4,3277.5,6.5]
[1737664737888,3.05047,3278.2,3277.8,0.03328688]
[1737664738091,3.05047,3278.2,3277.5,3.0511]
[1737664738293,3.05037,3278.3,3277.8,0.03631296]
[1737664738463,3.05037,3278.3,3277.3,4.34629]
[1737664738464,0.305029,3278.4,3277.3,1.295]